bitfinex-derivatives/quotes_SOLF0:USTF0_20220102
["timestamp","ask_amount","ask_price","bid_price","bid_amount"]
[1641103000065,27.66479,176.36,176.32,1.30561567]
[1641103000967,2.71853293,176.35,176.32,1.30561567]
[1641103001667,27.66479,176.36,176.32,1.30561567]
[1641103002368,2.71736619,176.35,176.32,1.30561567]
[1641103004975,2.71736619,176.35,176.31,1.30561567]
[1641103007176,2.71736619,176.35,176.3,13.37657428]
[1641103007876,2.71736619,176.35,176.3,1.30561567]
[1641103013583,2.71736619,176.35,176.29,1.30561567]
[1641103015788,2.71736619,176.36,176.29,1.30561567]
[1641103016188,27.66479,176.32,176.29,1.30561567]
[1641103016388,27.66479,176.35,176.29,1.30561567]
[1641103016591,2.71736619,176.36,176.29,7.70561567]
[1641103016995,2.71736619,176.36,176.3,4.30561567]
[1641103017191,2.71736619,176.36,176.3,1.30561567]
[1641103017691,61.24266187,176.41,176.3,13.37657428]
[1641103017895,61.24266187,176.41,176.31,48.5056]
[1641103018192,27.66479,176.39,176.31,48.5056]
[1641103019093,2.71736619,176.38,176.32,1.30561567]
[1641103019593,27.66479,176.39,176.32,1.30561567]
[1641103020294,2.71453665,176.38,176.32,1.30561567]
[1641103024405,2.71453665,176.38,176.32,19.54282564]
[1641103025403,2.71453665,176.38,176.32,22.76368153]
[1641103026004,2.71453665,176.38,176.33,1.30561567]
[1641103028808,2.71975842,176.4,176.31,60.57655861]
[1641103029008,27.66479,176.39,176.31,60.57655861]
[1641103029413,2.71975842,176.38,176.32,1.30593584]
[1641103030513,27.66479,176.39,176.32,1.30593584]
[1641103031013,2.71974694,176.38,176.32,1.30593584]
[1641103031611,27.66479,176.39,176.32,1.30593584]
[1641103032011,55.9731,176.41,176.32,1.30593584]
[1641103032613,2.71975043,176.38,176.32,1.30593584]
[1641103033213,27.66479,176.39,176.32,1.30593584]
[1641103033814,2.7197512,176.38,176.32,1.30593584]
[1641103034313,27.66479,176.39,176.32,1.30593584]
[1641103034513,55.9731,176.41,176.32,1.30593584]
[1641103034514,52.9731,176.41,176.32,1.30593584]
[1641103034716,55.9731,176.41,176.32,1.30593584]
[1641103034918,3.0,176.4,176.32,1.30593584]
[1641103035115,27.66479,176.37,176.32,19.54320478]
[1641103035315,32.91879,176.37,176.32,19.54320478]
[1641103036120,2.71980775,176.36,176.32,1.30593584]
[1641103036720,32.91879,176.37,176.31,63.7974145]
[1641103037422,32.91879,176.37,176.31,60.57655861]
[1641103037621,2.72023936,176.36,176.32,1.30589231]
[1641103038321,15.07780128,176.39,176.31,60.57655861]
[1641103038922,2.71997058,176.38,176.32,1.30591675]
[1641103039122,27.66479,176.37,176.32,1.30591675]
[1641103040224,2.72009246,176.36,176.32,1.30591675]
[1641103040723,27.66479,176.37,176.31,60.57655861]
[1641103041027,27.66479,176.37,176.31,12.07095861]
[1641103041424,2.72026799,176.36,176.32,1.30588971]
[1641103041826,27.66479,176.37,176.3,57.79015861]
[1641103042124,12.07802626,176.38,176.31,1.30589993]
[1641103042625,49.4491,176.41,176.31,1.30589993]
[1641103042823,12.65792993,176.4,176.31,1.30589993]
[1641103043023,3.0,176.39,176.31,1.30589993]
[1641103043225,27.66479,176.37,176.31,1.30589993]
[1641103044524,2.72024189,176.36,176.31,1.30589993]
[1641103045329,88.48469469,176.37,176.3,45.7192]
[1641103045928,2.72042083,176.36,176.31,1.30587581]
[1641103047129,27.66479,176.34,176.31,1.30587581]
[1641103047331,32.92579,176.34,176.3,45.7192]
[1641103048030,2.72057286,176.33,176.31,1.30586199]
[1641103048829,32.92579,176.34,176.31,4.02663445]
[1641103049728,32.92579,176.34,176.3,1.30584203]
[1641103049929,2.72098487,176.33,176.28,1.30582454]
[1641103050329,5.72098487,176.33,176.28,1.30582454]
[1641103050530,32.92579,176.34,176.28,1.30582454]
[1641103050729,32.92579,176.34,176.31,4.02685322]
[1641103051231,2.72112733,176.33,176.28,1.30582454]
[1641103052032,32.92579,176.34,176.31,4.02690295]
[1641103052533,2.72109139,176.33,176.28,1.30581485]
[1641103053134,54.7411,176.34,176.27,57.60295861]
[1641103053135,27.66479,176.32,176.27,57.60295861]
[1641103053333,27.66479,176.32,176.31,4.02690622]
[1641103053834,30.38589676,176.32,176.28,1.30581346]
[1641103054437,54.7411,176.34,176.31,4.02692018]
[1641103054635,5.261,176.34,176.31,4.02692018]
[1641103054836,15.08070885,176.35,176.31,4.02692018]
[1641103055037,12.08070885,176.35,176.31,4.02692018]
[1641103055237,27.66479,176.32,176.27,57.60295861]
[1641103055437,27.66479,176.32,176.28,1.30581388]
[1641103056039,27.66479,176.32,176.31,4.02681113]
[1641103056638,27.66479,176.35,176.27,57.60295861]
[1641103056838,2.7210481,176.32,176.28,1.30581879]
[1641103057238,2.72047872,176.37,176.28,27.66479]
[1641103057439,14.79952653,176.37,176.29,12.07095861]
[1641103058241,79.10059,176.38,176.29,12.07095861]
[1641103058439,79.10059,176.38,176.33,4.02621296]
[1641103058941,12.07936967,176.36,176.32,4.02645656]
[1641103059240,27.66479,176.35,176.32,4.02645656]
[1641103059641,27.66479,176.35,176.28,19.54339711]
[1641103059642,39.74467072,176.35,176.31,4.02662691]
[1641103060343,2.72059674,176.34,176.32,4.0265542]
[1641103061046,27.66479,176.35,176.28,19.54347908]
[1641103061242,74.02609,176.35,176.28,19.54347908]
[1641103061844,2.72079576,176.34,176.31,4.02663749]
[1641103062645,46.3613,176.35,176.28,1.30588418]
[1641103063144,27.66479,176.34,176.28,1.30588418]
[1641103063346,30.38564362,176.34,176.31,4.02669009]
[1641103063847,2.72097922,176.33,176.3,4.02680427]
[1641103064549,27.66479,176.34,176.27,57.60295861]
[1641103064749,27.66479,176.34,176.28,4.01164505]
[1641103064950,46.3613,176.35,176.28,4.01164505]
[1641103065149,46.3613,176.35,176.27,57.9036517]
[1641103065552,27.66479,176.34,176.27,57.9036517]
[1641103066157,4.01164725,176.33,176.27,57.9036517]
[1641103066952,27.66479,176.34,176.27,57.9036517]
[1641103067754,46.3613,176.35,176.27,57.9036517]
[1641103067956,4.01163918,176.33,176.28,4.0116517]
[1641103068156,4.01163918,176.33,176.28,5.31254822]
[1641103068557,30.37552897,176.34,176.27,53.892]
[1641103069158,4.01164028,176.33,176.28,5.31253669]
[1641103069758,7.45375048,176.34,176.27,8.36]
[1641103070460,4.01198798,176.31,176.27,1.9165123]
[1641103071858,31.67677798,176.32,176.26,4.01189168]
[1641103072959,31.67677798,176.32,176.27,4.01189168]
[1641103073462,4.01198798,176.3,176.25,1.30087342]
[1641103073665,4.01198798,176.3,176.26,12.07095861]
[1641103076165,4.01198798,176.29,176.25,13.37183203]
[1641103076765,4.01198798,176.3,176.26,12.07095861]
[1641103078864,4.01198798,176.3,176.26,17.61395861]
[1641103079265,4.01198798,176.29,176.26,8.543]
[1641103079465,4.01198798,176.29,176.27,3.0]
[1641103080068,2.72126289,176.31,176.27,3.0]
[1641103080266,4.0265982,176.32,176.28,12.07095861]
[1641103080466,4.0265982,176.32,176.29,45.8657]
[1641103080666,4.0265982,176.32,176.28,39.73574861]
[1641103081069,4.0265982,176.32,176.29,1.30087342]
[1641103082870,4.0265982,176.32,176.3,3.0]
[1641103083070,4.0265982,176.32,176.29,1.30087342]
[1641103083472,2.72126289,176.35,176.29,19.5394468]
[1641103084271,2.72126289,176.35,176.29,1.30087342]
[1641103085471,2.72126289,176.35,176.29,19.5394696]
[1641103086273,2.72126289,176.35,176.29,24.2454696]
[1641103086876,12.03493516,176.37,176.3,1.30087342]
[1641103087683,27.66479,176.39,176.3,1.30087342]
[1641103088977,2.70831978,176.38,176.3,1.30087342]
[1641103089176,2.70831978,176.38,176.31,27.66479]
[1641103089578,2.70831978,176.38,176.32,1.30087342]
[1641103090678,2.70831978,176.38,176.3,1.30087342]
[1641103092986,2.70831978,176.39,176.3,1.30087342]
[1641103093184,2.70831978,176.39,176.3,28.96566342]
[1641103093485,2.70831978,176.39,176.31,1.30087342]
[1641103095089,12.03493516,176.38,176.31,1.30087342]
[1641103101092,12.03493516,176.38,176.31,28.96566342]
[1641103101895,12.03493516,176.38,176.32,1.30087342]
[1641103102697,14.74325494,176.39,176.32,1.30087342]
[1641103106807,14.74325494,176.39,176.31,13.37183203]
[1641103107711,42.40804494,176.39,176.31,13.37183203]
[1641103108808,2.70831978,176.38,176.31,13.37183203]
[1641103112108,2.70831978,176.38,176.31,19.53994481]
[1641103113111,5.70831978,176.38,176.31,19.53994481]
[1641103113412,3.0,176.37,176.31,1.30087342]
[1641103113610,3.0,176.36,176.31,1.30087342]
[1641103113810,27.66479,176.33,176.31,1.30087342]
[1641103115412,27.66479,176.33,176.27,19.5281182]
[1641103117313,27.66479,176.33,176.27,22.74953704]
[1641103117514,27.66479,176.33,176.27,4.52229226]
[1641103118214,27.66479,176.33,176.28,16.37183203]
[1641103118414,12.03493516,176.36,176.28,13.37183203]
[1641103118815,2.71957878,176.36,176.3,12.07095861]
[1641103119517,2.71957878,176.36,176.3,1.30087342]
[1641103119713,27.66479,176.34,176.3,1.30087342]
[1641103120114,2.71957878,176.33,176.3,1.30087342]
[1641103121213,2.71957878,176.33,176.28,13.37183203]
[1641103124517,27.66479,176.34,176.29,12.07095861]
[1641103125017,2.71982211,176.33,176.28,13.37183203]
[1641103126619,14.75475727,176.36,176.28,13.37183203]
[1641103126817,14.75475727,176.36,176.28,18.19783203]
[1641103127017,27.66479,176.33,176.28,18.19783203]
[1641103127221,27.66479,176.33,176.29,13.37183203]
[1641103128120,58.27773516,176.37,176.29,13.37183203]
[1641103128419,2.7197235,176.36,176.29,13.37183203]
[1641103129023,2.7197235,176.36,176.32,27.66479]
[1641103129221,2.7197235,176.36,176.32,33.65579]
[1641103130121,12.03493516,176.41,176.33,19.5402093]
[1641103131623,2.7197235,176.41,176.33,19.5402093]
[1641103132322,12.03493516,176.42,176.35,12.07095861]
[1641103132323,2.71818337,176.42,176.35,12.07095861]
[1641103132922,27.66479,176.43,176.35,12.07095861]
[1641103133122,27.66479,176.43,176.35,19.5402093]
[1641103133723,2.71818566,176.42,176.35,19.5402093]
[1641103134322,2.71818566,176.42,176.35,22.76162814]
[1641103134622,27.66479,176.43,176.35,22.76162814]
[1641103135222,27.66479,176.43,176.36,1.30087342]
[1641103135223,2.71820218,176.42,176.36,1.30087342]
[1641103135723,27.66479,176.43,176.36,1.30087342]
[1641103135925,39.73941126,176.43,176.36,1.30087342]
[1641103136427,27.66479,176.43,176.36,1.30087342]
[1641103136627,12.07599204,176.41,176.36,1.30087342]
[1641103137125,2.7187048,176.42,176.35,3.22141884]
[1641103137325,2.7187048,176.42,176.34,48.501]
[1641103138524,5.7187048,176.42,176.34,48.501]
[1641103138724,2.7187048,176.42,176.34,48.501]
[1641103139226,2.7187048,176.42,176.35,1.30038737]
[1641103139827,27.66479,176.43,176.35,6.686]
[1641103141128,27.66479,176.43,176.35,10.6917984]
[1641103141330,4.0057984,176.42,176.35,10.6917984]
[1641103141729,4.00591849,176.41,176.35,6.686]
[1641103142431,2.70553081,176.42,176.35,6.686]
[1641103142630,4.00600065,176.4,176.35,6.686]
[1641103143529,4.0059576,176.41,176.35,6.686]
[1641103144131,4.0059576,176.41,176.35,9.686]
[1641103144331,2.70553081,176.42,176.35,9.686]
[1641103144535,14.72363566,176.42,176.38,4.0057984]
[1641103145131,27.66479,176.43,176.4,4.02464942]
[1641103145330,27.66479,176.43,176.4,10.69964942]
[1641103146035,27.66479,176.43,176.4,6.675]
[1641103146232,2.71801186,176.42,176.4,6.675]
[1641103147033,27.66479,176.43,176.4,10.69948795]
[1641103147833,27.66479,176.43,176.4,6.675]
[1641103148036,2.71777468,176.42,176.41,5.33119554]
[1641103148634,27.66479,176.43,176.37,12.07095861]
[1641103149435,2.71764758,176.42,176.41,4.02436957]
[1641103149835,27.66479,176.43,176.37,12.07095861]
[1641103150234,61.0655164,176.45,176.37,12.07095861]
[1641103150534,48.9924,176.45,176.37,12.07095861]
[1641103150734,2.71765705,176.42,176.41,4.02437818]
[1641103150935,2.71765705,176.42,176.41,10.75737818]
[1641103151335,27.66479,176.42,176.41,6.733]
[1641103151937,12.07271881,176.46,176.41,6.733]
[1641103152538,12.07271881,176.47,176.41,8.03972557]
[1641103153339,12.07271881,176.47,176.44,4.02377553]
[1641103153539,2.71699414,176.47,176.44,4.02377553]
[1641103154143,32.20238175,176.52,176.44,6.084]
[1641103154342,12.07175482,176.47,176.44,6.084]
[1641103155142,32.20238175,176.51,176.44,6.084]
[1641103155442,35.20238175,176.51,176.45,5.33021306]
[1641103155742,12.07033781,176.49,176.45,5.33021306]
[1641103155941,18.39833781,176.49,176.45,5.33021306]
[1641103156342,12.07192343,176.47,176.43,4.02397448]
[1641103157047,12.07192343,176.47,176.39,86.79284861]
[1641103157244,14.78855502,176.48,176.44,4.0237048]
[1641103158546,12.64355572,176.49,176.4,19.54498698]
[1641103158747,50.274,176.48,176.4,19.54498698]
[1641103159146,2.71690754,176.47,176.44,4.02367665]
[1641103159748,50.274,176.48,176.4,19.54498698]
[1641103160051,50.274,176.48,176.41,3.0]
[1641103160247,50.274,176.48,176.4,22.54498698]
[1641103160449,2.71680464,176.47,176.44,4.02360326]
[1641103161047,27.66479,176.5,176.42,6.743]
[1641103161248,12.07064728,176.49,176.45,4.02354909]
[1641103161649,12.07064728,176.49,176.43,46.6842]
[1641103161850,27.66479,176.5,176.43,46.6842]
[1641103164152,27.66479,176.5,176.42,3.99257956]
[1641103164351,27.66479,176.5,176.41,3.99257956]
[1641103164956,27.66479,176.5,176.41,5.29033904]
[1641103166554,49.5194,176.51,176.41,5.29033904]
[1641103166753,49.5194,176.51,176.41,10.04933904]
[1641103167558,27.66479,176.5,176.41,37.71412904]
[1641103168355,30.37713945,176.5,176.45,3.99257956]
[1641103168558,30.37713945,176.5,176.45,10.60857956]
[1641103169160,27.66479,176.5,176.45,6.616]
[1641103169360,2.712379,176.49,176.45,6.616]
[1641103170261,27.66479,176.5,176.46,5.32205149]
[1641103171064,2.71226328,176.49,176.42,18.22870371]
[1641103171866,27.66479,176.5,176.45,4.01730569]
[1641103172469,2.71270107,176.49,176.44,4.01752369]
[1641103173567,27.66479,176.47,176.42,1.30484443]
[1641103173770,27.66479,176.47,176.43,4.01775717]
[1641103174268,27.66479,176.47,176.4,49.0443]
[1641103174469,2.71313159,176.46,176.42,4.01791508]
[1641103175470,27.66479,176.47,176.4,49.0443]
[1641103175969,4.01808271,176.43,176.41,5.32284944]
[1641103177070,4.0180648,176.44,176.39,1.30476852]
[1641103177271,4.0180648,176.44,176.39,9.29076852]
[1641103177675,12.07064728,176.48,176.42,27.66479]
[1641103177873,4.01756734,176.46,176.42,27.66479]
[1641103178571,49.5944,176.49,176.42,27.66479]
[1641103178773,12.07064728,176.5,176.44,4.01745475]
[1641103179373,4.01728736,176.47,176.45,4.01728736]
[1641103180074,2.7124411,176.5,176.43,49.658]
[1641103180974,4.01725948,176.47,176.45,4.01725948]
[1641103181575,61.42724728,176.51,176.43,49.658]
[1641103181776,8.42446876,176.5,176.42,27.66479]
[1641103181976,2.71246876,176.5,176.42,27.66479]
[1641103182477,4.01747535,176.46,176.44,4.01747535]
[1641103183278,14.78320885,176.5,176.42,27.66479]
[1641103184079,4.01724118,176.47,176.45,4.01724118]
[1641103184682,61.42724728,176.51,176.43,1.30485088]
[1641103185482,4.01716395,176.48,176.46,4.01716395]
[1641103186082,49.3566,176.51,176.43,1.30485088]
[1641103187084,4.01717844,176.48,176.46,4.01717844]
[1641103187283,4.01717844,176.48,176.46,9.42717844]
[1641103187684,4.01717844,176.48,176.47,27.66479]
[1641103187883,49.3566,176.51,176.47,27.66479]
[1641103188085,49.3566,176.51,176.47,32.98065725]
[1641103188783,4.01101637,176.52,176.47,32.98065725]
[1641103188983,4.01114946,176.51,176.47,27.66479]
[1641103189485,49.1706,176.54,176.47,27.66479]
[1641103189686,4.01102892,176.52,176.47,31.67581892]
[1641103190288,49.1706,176.54,176.44,49.4788]
[1641103190990,4.01120481,176.51,176.46,4.01120481]
[1641103191690,4.01269843,176.5,176.47,4.01269843]
[1641103192990,2.70808603,176.53,176.45,1.30311877]
[1641103193190,12.07064728,176.52,176.48,4.02286048]
[1641103193993,12.63262658,176.53,176.45,1.30311877]
[1641103194895,12.06855097,176.52,176.48,4.02285032]
[1641103195498,12.63262658,176.53,176.45,1.30311877]
[1641103195898,40.29741658,176.53,176.45,1.30311877]
[1641103196097,12.06869556,176.52,176.48,4.02289852]
[1641103196797,2.70808603,176.52,176.45,1.30311877]
[1641103197298,30.66479,176.53,176.44,61.54975861]
[1641103197499,12.06874679,176.52,176.48,4.0229156]
[1641103198098,27.66479,176.53,176.44,61.54975861]
[1641103198299,12.06921227,176.51,176.47,4.02307076]
[1641103198900,12.64151643,176.52,176.44,49.4788]
[1641103199803,12.06925252,176.51,176.47,4.02308417]
[1641103200404,14.78545019,176.52,176.44,49.4788]
[1641103201807,14.78545019,176.52,176.48,4.0229846]
[1641103202208,17.78545019,176.52,176.48,4.0229846]
[1641103202407,3.0,176.49,176.45,1.30686049]
[1641103203309,2.71640876,176.48,176.47,4.02324337]
[1641103203908,30.38119876,176.48,176.47,4.02324337]
[1641103204209,30.38119876,176.48,176.47,1.22904337]
[1641103204711,27.66479,176.48,176.41,63.02195861]
[1641103205411,2.71703481,176.47,176.42,1.30661893]
[1641103206210,12.07066957,176.49,176.42,1.30661893]
[1641103206911,8.684,176.52,176.42,1.30661893]
[1641103207111,8.684,176.52,176.43,12.07095861]
[1641103207112,14.78626924,176.51,176.43,12.07095861]
[1641103207810,27.66479,176.5,176.43,12.07095861]
[1641103208711,2.71644374,176.49,176.43,12.07095861]
[1641103209512,88.5304155,176.5,176.42,19.54464479]
[1641103209713,88.5304155,176.5,176.42,22.76375472]
[1641103210210,2.71645278,176.49,176.42,22.76375472]
[1641103211016,76.46059,176.5,176.43,1.30661893]
[1641103211213,88.53045079,176.5,176.43,1.30661893]
[1641103211813,76.46059,176.5,176.43,1.30661893]
[1641103212013,2.71665438,176.49,176.43,1.30661893]
[1641103212415,76.46059,176.5,176.43,1.30661893]
[1641103212615,88.53075538,176.5,176.43,1.30661893]
[1641103213216,5.71674756,176.49,176.42,21.45713579]
[1641103213617,2.71674756,176.49,176.42,21.45713579]
[1641103214117,27.66479,176.47,176.43,1.30664215]
[1641103214718,2.71703208,176.46,176.42,3.21910993]
[1641103215118,2.71703208,176.46,176.41,63.02195861]
[1641103215321,27.66479,176.47,176.43,1.30660633]
[1641103216120,27.66479,176.47,176.41,50.951]
[1641103216420,27.66479,176.47,176.42,1.30660517]
[1641103216620,2.7171862,176.46,176.42,1.30660517]
[1641103217321,27.66479,176.47,176.41,50.951]
[1641103217621,27.66479,176.47,176.4,12.07095861]
[1641103217919,2.7172038,176.46,176.42,1.30660357]
[1641103218724,27.66479,176.47,176.4,13.37755793]
[1641103219523,2.71735164,176.46,176.4,1.30659932]
[1641103220227,33.65579,176.47,176.4,1.30659932]
[1641103220827,2.71739723,176.46,176.4,1.30659932]
[1641103221426,2.71739723,176.46,176.4,4.30659932]
[1641103221726,12.07086325,176.49,176.42,5.66107164]
[1641103221927,12.07086325,176.49,176.42,4.951]
[1641103222127,12.07086325,176.49,176.44,27.66479]
[1641103222529,12.07086325,176.49,176.41,39.73574861]
[1641103222729,2.71648493,176.49,176.43,13.37755793]
[1641103222929,2.71648493,176.49,176.43,18.78255793]
[1641103223529,3.0,176.52,176.43,18.78255793]
[1641103223733,12.06987315,176.5,176.44,1.30659932]
[1641103224431,2.71663585,176.51,176.43,47.6053]
[1641103224631,3.0,176.5,176.42,18.23769853]
[1641103224833,8.188,176.5,176.42,18.23769853]
[1641103225235,3.0,176.45,176.42,1.3066305]
[1641103225432,9.767,176.45,176.42,1.3066305]
[1641103225632,3.0,176.44,176.42,1.3066305]
[1641103225832,3.0,176.43,176.42,1.3066305]
[1641103226035,3.0,176.43,176.38,12.07095861]
[1641103226235,27.66479,176.43,176.38,12.07095861]
[1641103226835,2.71793623,176.42,176.38,1.30656534]
[1641103227634,27.66479,176.43,176.38,1.30656534]
[1641103228236,30.66479,176.43,176.38,1.30656534]
[1641103228435,27.66479,176.43,176.38,1.30656534]
[1641103228737,27.66479,176.43,176.37,21.45740442]
[1641103228937,2.71799802,176.42,176.37,21.45740442]
[1641103229637,27.66479,176.43,176.38,1.30653131]
[1641103230038,2.71799979,176.42,176.37,21.45740442]
[1641103231341,30.66479,176.43,176.38,1.306533]
[1641103231538,27.66479,176.43,176.38,1.306533]
[1641103231737,3.0,176.4,176.38,1.306533]
[1641103231939,8.132,176.4,176.38,1.306533]
[1641103232138,5.132,176.4,176.38,1.306533]
[1641103232439,27.66479,176.39,176.38,1.306533]
[1641103232838,27.66479,176.39,176.36,12.07095861]
[1641103233038,27.66479,176.39,176.34,18.23792597]
[1641103233039,30.38344491,176.39,176.34,18.23792597]
[1641103233440,33.38344491,176.39,176.34,18.23792597]
[1641103233640,33.38344491,176.39,176.34,1.30645112]
[1641103233641,2.71888075,176.38,176.34,1.30645112]
[1641103233842,5.71888075,176.38,176.34,1.30645112]
[1641103234943,3.0,176.38,176.34,1.30645112]
[1641103235442,30.66479,176.39,176.34,1.30645112]
[1641103235645,2.71892508,176.38,176.34,1.30645112]
[1641103236445,24.22419413,176.39,176.34,1.30645112]
[1641103236643,24.22419413,176.39,176.34,19.54370176]
[1641103236857,21.22419413,176.39,176.34,19.54370176]
[1641103237744,24.22419413,176.39,176.34,19.54370176]
[1641103238448,2.71875279,176.38,176.34,1.30645112]
[1641103238845,3.0,176.35,176.34,1.30645112]
[1641103239049,3.0,176.35,176.34,5.112e-05]
[1641103239648,3.0,176.35,176.33,12.07095861]
[1641103239849,3.0,176.35,176.29,32.20238175]
[1641103239850,3.0,176.34,176.3,12.07095861]
[1641103240048,8.864,176.34,176.3,12.07095861]
[1641103240448,27.66479,176.31,176.3,12.07095861]
[1641103241051,27.66479,176.31,176.29,18.2383962]
[1641103241452,12.0755548,176.37,176.29,18.2383962]
[1641103241652,12.0755548,176.37,176.29,23.8813962]
[1641103241851,24.22419413,176.39,176.32,12.07095861]
[1641103242053,21.22419413,176.39,176.32,12.07095861]
[1641103244258,21.22419413,176.39,176.33,12.07095861]
[1641103244457,21.22419413,176.39,176.33,17.03895861]
[1641103245457,21.22419413,176.39,176.33,4.968]
[1641103246058,45.1192,176.4,176.33,4.968]
[1641103246256,27.66479,176.41,176.33,4.968]
[1641103246456,27.66479,176.41,176.33,32.63279]
[1641103247356,48.4433,176.43,176.33,32.63279]
[1641103247557,48.4433,176.43,176.34,45.372]
[1641103249759,48.4433,176.43,176.34,50.792]
[1641103252066,3.0,176.43,176.34,50.792]
[1641103252264,27.66479,176.44,176.34,59.45579701]
[1641103252465,3.0,176.47,176.37,5.66267448]
[1641103252666,12.0755548,176.43,176.38,46.0092]
[1641103252865,12.0755548,176.43,176.38,52.8342]
[1641103253870,3.0,176.46,176.39,18.23689653]
[1641103254067,15.0755548,176.47,176.39,18.23689653]
[1641103254266,3.0,176.46,176.39,18.23689653]
[1641103254466,27.66479,176.45,176.39,18.23689653]
[1641103255968,27.66479,176.45,176.38,58.08015861]
[1641103256568,27.66479,176.45,176.39,18.23655108]
[1641103257372,27.66479,176.45,176.39,23.08055108]
[1641103257673,27.66479,176.45,176.39,4.844]
[1641103258771,27.66479,176.45,176.38,58.08015861]
[1641103259172,73.46319,176.45,176.38,58.08015861]
[1641103262876,45.7984,176.45,176.38,58.08015861]
[1641103264475,45.7984,176.45,176.38,46.0092]
[1641103265075,49.80369666,176.45,176.38,50.01449666]
[1641103265675,3.0,176.43,176.38,4.00529666]
[1641103266377,7.00529666,176.43,176.36,4.00529666]
[1641103268876,4.00529666,176.43,176.36,4.00529666]
[1641103269977,31.67008666,176.43,176.37,4.00529666]
[1641103270181,4.00529666,176.43,176.37,10.72829666]
[1641103270581,49.80369666,176.45,176.38,4.00529666]
[1641103270980,52.80369666,176.45,176.38,4.00529666]
[1641103271180,3.0,176.44,176.38,4.00529666]
[1641103271381,7.00529666,176.44,176.37,4.00529666]
[1641103271579,4.00529666,176.44,176.37,4.00529666]
[1641103275186,57.25269666,176.45,176.38,4.00529666]
[1641103275385,52.80369666,176.45,176.38,4.00529666]
[1641103275584,3.0,176.44,176.38,4.00529666]
[1641103275785,4.00529666,176.41,176.37,12.07095861]
[1641103275987,31.67008666,176.41,176.37,12.07095861]
[1641103276984,31.67008666,176.41,176.35,12.07095861]
[1641103277185,4.00529666,176.39,176.35,12.07095861]
[1641103277389,8.20529666,176.39,176.35,12.07095861]
[1641103279993,4.2,176.39,176.35,1.30286014]
[1641103280193,3.0,176.4,176.35,1.30286014]
[1641103280597,4.00529666,176.39,176.33,1.30286014]
[1641103289208,4.00529666,176.4,176.33,13.37381875]
[1641103289507,4.00529666,176.4,176.33,19.27481875]
[1641103289709,4.00529666,176.4,176.34,27.66479]
[1641103289909,4.00529666,176.41,176.34,28.96765014]
[1641103290611,4.00529666,176.4,176.35,1.30286014]
[1641103291213,4.00529666,176.4,176.37,4.01552887]
[1641103291715,4.00529666,176.4,176.37,9.73252887]
[1641103293014,4.00529666,176.41,176.37,9.73252887]
[1641103294015,4.00529666,176.39,176.38,5.32045076]
[1641103295919,4.00529666,176.4,176.38,5.32045076]
[1641103296519,12.0755548,176.44,176.37,5.717]
[1641103296720,12.0755548,176.44,176.39,4.02148287]
[1641103297121,12.0755548,176.44,176.39,8.58348287]
[1641103297519,16.09622894,176.44,176.43,4.02067414]
[1641103297721,4.02067414,176.44,176.43,8.57367414]
[1641103298421,12.0755548,176.48,176.43,4.553]
[1641103298621,4.02021913,176.46,176.43,5.85801851]
[1641103298820,4.02021913,176.46,176.43,1.30501851]
[1641103299321,3.0,176.49,176.45,4.02022713]
[1641103299723,62.9702548,176.5,176.45,4.02022713]
[1641103299927,4.02023536,176.46,176.42,1.30506321]
[1641103300727,2.71517137,176.49,176.45,4.0202339]
[1641103301826,3.0,176.48,176.45,4.0202339]
[1641103302027,4.02023201,176.46,176.42,1.30506321]
[1641103302328,8.52723201,176.46,176.42,1.30506321]
[1641103302532,4.02052908,176.45,176.43,4.02052908]
[1641103303228,4.507,176.46,176.44,4.02049148]
[1641103303828,4.507,176.46,176.4,57.31695861]
[1641103304228,2.71562342,176.45,176.43,4.02064486]
[1641103304828,2.71562342,176.45,176.41,1.30502144]
[1641103304829,2.71562342,176.45,176.4,45.246]
[1641103305031,4.507,176.46,176.42,4.02080665]
[1641103305629,4.02073221,176.43,176.4,1.3050127]
[1641103306230,4.507,176.46,176.38,39.73574861]
[1641103306429,12.0755548,176.47,176.42,4.02084659]
[1641103306930,12.0755548,176.47,176.38,39.73574861]
[1641103307129,4.02085634,176.43,176.39,1.30500029]
[1641103307534,14.79141085,176.47,176.39,1.30500029]
[1641103307733,14.79141085,176.47,176.42,4.02085767]
[1641103308131,14.79141085,176.47,176.39,1.30500029]
[1641103308331,4.02087026,176.43,176.39,1.30500029]
[1641103308734,4.0116894,176.44,176.39,5.31668969]
[1641103309732,45.7452,176.46,176.38,30.88438502]
[1641103309932,45.7452,176.46,176.38,36.33138502]